bitfinex/quotes_ETHUSD_20250807
["timestamp","ask_amount","ask_price","bid_price","bid_amount"]
[1754530093548,0.9245,3713.9,3713.0,0.1344]
[1754530093861,0.9245,3713.9,3712.8,0.1344]
[1754530093862,0.1344,3713.3,3712.8,0.1344]
[1754530094061,2.69333481,3712.9,3712.6,0.84150278]
[1754530094259,0.4479,3712.8,3712.6,1.4085413]
[1754530094465,2.69407733,3711.9,3710.9,0.001]
[1754530094776,0.9245,3712.7,3710.9,0.001]
[1754530094777,0.1344,3712.0,3711.4,0.1344]
[1754530094999,0.1344,3712.1,3711.6,0.1344]
[1754530095167,2.82829621,3712.1,3711.6,0.1344]
[1754530095345,0.4479,3712.0,3711.6,0.1344]
[1754530095541,0.4479,3712.0,3711.9,0.001]
[1754530095752,3.14186551,3712.0,3711.9,0.001]
[1754530095955,0.9245,3712.0,3711.9,0.001]
[1754530096218,3.14186551,3712.0,3711.9,0.001]
[1754530096570,3.61846551,3712.0,3711.9,0.001]
[1754530097055,0.9245,3712.0,3711.9,0.001]
[1754530097255,3.61846551,3712.0,3711.9,0.001]
[1754530097690,3.14186551,3712.0,3711.9,0.001]
[1754530097912,3.61846551,3712.0,3711.9,0.001]
[1754530098215,2.69432843,3711.5,3711.4,0.1344]
[1754530098390,2.69432843,3711.5,3710.9,0.001]
[1754530098391,2.69469145,3711.0,3710.9,0.001]
[1754530098555,2.82909145,3711.0,3710.9,0.001]
[1754530098761,3.27699145,3711.0,3710.9,0.001]
[1754530099069,3.75359145,3711.0,3710.9,0.001]
[1754530099587,0.4479,3711.0,3710.9,0.001]
[1754530099958,2.69448678,3711.3,3710.9,0.001]
[1754530100182,0.4387,3711.5,3710.9,0.001]
[1754530100381,0.4387,3711.7,3710.9,0.001]
[1754530100895,2.69431808,3711.6,3710.9,0.001]
[1754530101057,2.69427529,3711.6,3710.9,0.001]
[1754530101258,0.4387,3711.7,3710.9,0.001]
[1754530101460,2.69404427,3711.9,3710.9,0.001]
[1754530101797,2.69397107,3712.0,3711.0,2.69469145]
[1754530101962,0.26940443,3711.8,3710.9,2.69573553]
[1754530102164,0.4387,3712.2,3710.9,0.001]
[1754530102359,5.312,3712.3,3710.9,0.24738864]
[1754530102560,0.4387,3712.1,3710.9,0.001]
[1754530102755,2.69439142,3711.5,3710.9,0.001]
[1754530103064,2.69405937,3711.9,3710.9,0.001]
[1754530103256,0.4387,3711.7,3710.9,0.001]
[1754530103460,2.6944985,3711.3,3710.9,0.001]
[1754530103661,2.69469145,3711.0,3710.9,0.001]
[1754530103978,2.69462516,3711.1,3710.9,0.001]
[1754530104178,0.31333252,3711.1,3710.9,0.001]
[1754530104511,2.69433705,3711.5,3710.9,0.001]
[1754530104715,3.0,3712.3,3710.9,0.001]
[1754530104716,0.4387,3712.5,3710.9,0.001]
[1754530105068,2.69381963,3712.3,3711.2,2.69453434]
[1754530105276,3.13234481,3712.5,3711.3,0.2462839]
[1754530105277,3.27643975,3712.2,3711.3,0.2462839]
[1754530105599,0.58261644,3712.2,3710.9,0.001]
[1754530105778,2.69440617,3711.4,3710.9,0.001]
[1754530105958,0.4387,3712.1,3710.9,0.001]
[1754530106164,2.69454257,3711.3,3710.9,0.001]
[1754530106372,3.62479715,3712.0,3710.9,0.001]
[1754530106373,1.36953164,3712.0,3710.9,0.001]
[1754530106902,2.69316929,3713.1,3712.2,2.69379718]
[1754530107112,2.69305378,3713.3,3712.3,2.69373716]
[1754530107309,2.69289552,3713.5,3711.7,0.4607]
[1754530107474,3.13175927,3713.3,3711.8,0.24597952]
[1754530107807,0.58246548,3713.2,3712.6,2.69351393]
[1754530107985,0.4387,3713.3,3712.4,2.69360482]
[1754530108184,0.4387,3713.3,3711.7,3.15488268]
[1754530108388,0.004,3713.7,3711.9,3.24403809]
[1754530108576,0.004,3713.7,3712.0,0.73374197]
[1754530108909,0.004,3713.7,3713.2,2.69303907]
[1754530109114,0.004,3713.7,3712.2,0.0269382]
[1754530109274,0.004,3713.7,3712.3,0.24621825]
[1754530109474,0.004,3713.7,3713.6,0.1344]
[1754530109682,0.31752913,3713.7,3713.6,0.1344]
[1754530110212,0.004,3713.7,3713.6,0.1344]
[1754530110717,0.004,3713.7,3713.6,3.07332639]
[1754530111009,0.004,3713.7,3713.6,0.38052157]
[1754530111776,0.004,3713.7,3713.6,0.1344]
[1754530112522,0.4427,3713.7,3713.6,0.1344]
[1754530112731,0.004,3713.7,3713.6,0.1344]
[1754530113235,0.004,3713.7,3713.6,2.82720482]
[1754530113507,0.004,3713.7,3713.6,0.1344]
[1754530114010,0.004,3713.7,3713.6,2.82720482]
[1754530114208,0.004,3713.7,3713.6,3.38191127]
[1754530114615,0.004,3713.7,3713.6,0.1344]
[1754530115395,0.004,3713.7,3712.3,5.219]
[1754530115595,0.004,3713.7,3713.6,2.82720482]
[1754530116804,1e-08,3713.7,3713.6,2.82720482]
[1754530117323,1e-08,3713.7,3713.6,3.37720482]
[1754530118736,1e-08,3713.7,3713.6,8.58020482]
[1754530120001,1e-08,3713.7,3713.6,8.57420482]
[1754530120498,1e-08,3713.7,3713.6,8.01920482]
[1754530120934,1e-08,3713.7,3713.6,2.82720482]
[1754530121132,1e-08,3713.7,3713.6,8.01220482]
[1754530121493,1e-08,3713.7,3713.6,2.82720482]
[1754530121698,1e-08,3713.7,3713.6,8.00420482]
[1754530121893,1e-08,3713.7,3713.6,2.82720482]
[1754530122101,1e-08,3713.7,3713.6,8.00220482]
[1754530122508,1e-08,3713.7,3713.6,2.82720482]
[1754530122707,1e-08,3713.7,3713.6,8.00220482]
[1754530123107,0.43870001,3713.7,3713.6,0.1344]
[1754530123316,0.91030001,3713.7,3712.7,5.167]
[1754530123513,0.4387,3713.6,3713.5,0.1344]
[1754530123718,2.69294026,3713.5,3712.5,7.85859775]
[1754530123924,1.06829876,3713.4,3713.0,0.1344]
[1754530124130,3.76125954,3713.4,3713.0,0.1344]
[1754530124303,3.32255954,3713.4,3713.0,0.1344]
[1754530124622,3.13175784,3713.3,3713.0,0.1344]
[1754530124825,0.9103,3713.3,3712.2,2.69376927]
[1754530125039,0.9103,3713.3,3711.0,0.809279]
[1754530125040,2.69318178,3713.1,3712.7,0.1344]
[1754530125206,2.69338504,3712.8,3711.6,2.69419517]
[1754530125409,0.4387,3712.7,3712.6,0.1344]
[1754530125735,0.4387,3712.7,3712.4,0.1344]
[1754530125941,0.4387,3712.6,3712.4,0.1344]
[1754530126111,0.7990685,3712.6,3712.4,0.1344]
[1754530126315,0.4387,3712.5,3712.4,0.1344]
[1754530126524,0.43870001,3713.7,3711.9,0.02694038]
[1754530126698,0.43870001,3713.7,3711.8,2.69408469]
[1754530126699,0.43870001,3713.7,3712.0,0.02693965]
[1754530126898,1e-08,3713.7,3712.2,2.69382037]
[1754530127101,1e-08,3713.7,3713.4,2.69290178]
[1754530127303,1e-08,3713.7,3713.2,2.69302491]
[1754530127503,0.43870001,3713.7,3713.0,5.155]
[1754530128042,1e-08,3713.7,3713.6,2.69280482]
[1754530128405,1e-08,3713.7,3713.6,2.71973286]
[1754530129139,1e-08,3713.7,3713.6,7.84380482]
[1754530129343,1e-08,3713.7,3713.6,7.83780482]
[1754530130040,0.47220001,3713.7,3713.5,5.138]
[1754530130242,0.47220001,3713.7,3711.9,3.0]
[1754530130243,1e-08,3713.7,3713.6,7.83080482]
[1754530131157,1e-08,3713.7,3713.6,2.69280482]
[1754530131321,1e-08,3713.7,3713.6,7.82980482]
[1754530132157,1e-08,3713.7,3713.6,7.81880482]
[1754530132353,1e-08,3713.7,3713.6,7.81680482]
[1754530134845,1e-08,3713.7,3713.6,7.80280482]
[1754530135353,1e-08,3713.7,3713.6,2.69280482]
[1754530135556,1e-08,3713.7,3713.6,7.79780482]
[1754530136556,1e-08,3713.7,3713.6,7.92320482]
[1754530136753,1e-08,3713.7,3713.6,2.82720482]
[1754530137054,0.47220001,3713.7,3713.6,7.91920482]
[1754530137293,0.47220001,3713.7,3713.6,7.91820482]
[1754530137498,1e-08,3713.7,3713.6,7.91820482]
[1754530137694,1e-08,3713.7,3713.6,2.82720482]
[1754530137999,1e-08,3713.7,3713.6,7.91620482]
[1754530138568,0.47220001,3713.7,3713.6,7.91620482]
[1754530138969,1e-08,3713.7,3713.6,7.91620482]
[1754530141111,0.47220001,3713.7,3713.6,2.82720482]
[1754530141262,0.95330001,3713.7,3713.6,0.1344]
[1754530141466,2.69286857,3713.6,3711.8,2.69406104]
[1754530141660,0.1344,3713.0,3712.4,0.1344]
[1754530141900,0.4722,3712.9,3712.8,2.69338504]
[1754530142198,0.4722,3712.9,3712.8,2.82778504]
[1754530142579,0.4722,3713.6,3713.5,2.69287733]
[1754530142899,0.4722,3713.6,3713.2,2.69302696]
[1754530143099,0.4722,3713.6,3713.5,0.1344]
[1754530143300,0.4722,3713.6,3713.5,2.82727733]
[1754530143471,0.4722,3713.6,3713.5,0.1344]
[1754530143669,0.4722,3713.6,3713.5,2.82727733]
[1754530143902,1e-08,3713.7,3713.6,2.69280482]
[1754530144467,0.47220001,3713.7,3713.6,2.69280482]
[1754530144798,0.47220001,3713.7,3713.5,0.1344]
[1754530145017,0.31648177,3713.6,3713.5,0.1344]
[1754530145173,0.95330001,3713.7,3713.5,0.1344]
[1754530145373,0.4722,3713.6,3713.5,0.1344]
[1754530146694,0.9533,3713.6,3713.5,0.1344]
[1754530147101,0.9533,3713.6,3712.4,0.001]
[1754530147102,0.9533,3713.6,3712.9,5.034]
[1754530147268,0.4811,3713.6,3713.3,0.1344]
[1754530147473,0.80302515,3713.5,3712.9,7.71929639]
[1754530147673,0.80302515,3713.5,3713.2,0.1344]
[1754530147872,0.4722,3713.4,3713.2,0.1344]
[1754530148298,0.4722,3713.3,3713.2,0.1344]
[1754530149099,0.33082515,3713.5,3712.9,5.024]
[1754530149100,1e-08,3713.7,3712.9,5.024]
[1754530149280,1e-08,3713.7,3713.6,2.82720482]
[1754530149474,1e-08,3713.7,3713.6,7.84020482]
[1754530150505,0.47220001,3713.7,3713.6,2.82720482]
[1754530151205,0.47220001,3713.7,3713.4,5.003]
[1754530151426,0.47220001,3713.7,3713.3,0.1344]
[1754530151627,0.4722,3713.6,3713.3,0.1344]
[1754530151780,0.9533,3713.6,3713.3,0.1344]
[1754530151976,2.69311558,3713.2,3712.4,0.001]
[1754530152268,1.33133815,3713.5,3712.8,2.82776432]
[1754530152430,1.46573815,3713.5,3713.0,0.1344]
[1754530152613,0.4722,3713.4,3713.0,0.1344]
[1754530152956,0.4722,3713.3,3713.0,2.82760245]
[1754530153113,0.6155,3713.5,3713.2,2.69308424]
[1754530153311,1e-08,3713.7,3713.2,2.69308424]
[1754530153554,1e-08,3713.7,3713.2,2.82748424]
[1754530153755,0.4722,3713.6,3713.2,2.82748424]
[1754530153953,1e-08,3713.7,3713.2,2.82748424]
[1754530154153,0.4722,3713.5,3713.2,0.1344]
[1754530154357,0.4722,3713.4,3713.3,2.69301948]
[1754530154652,0.4722,3713.4,3713.2,0.1344]
[1754530154832,0.4722,3713.3,3712.6,4.989]
[1754530155030,0.4722,3713.3,3712.9,2.6933125]
[1754530155532,0.1344,3713.4,3713.0,2.6932018]
[1754530155754,0.4722,3713.2,3713.0,2.6932018]
[1754530155976,0.1344,3713.4,3713.1,2.69310458]
[1754530156476,0.1344,3713.4,3713.0,2.69323009]
[1754530156779,0.4722,3713.3,3713.0,2.69323636]
[1754530157090,0.4722,3713.2,3712.8,2.82772872]
[1754530157372,0.1344,3713.4,3712.8,0.1344]
[1754530157373,0.4722,3713.1,3712.8,0.1344]
[1754530157560,0.1344,3713.4,3712.7,2.69345706]
[1754530157748,0.4722,3713.3,3712.7,2.69345706]
[1754530157953,0.75492939,3713.3,3712.7,2.69345016]
[1754530158165,0.75492939,3713.3,3712.8,2.6933639]
[1754530158370,0.1344,3713.1,3712.7,2.69345142]
[1754530158750,0.4722,3713.0,3712.8,2.69337614]
[1754530158950,0.4722,3713.5,3712.5,2.69360269]
[1754530159271,0.4722,3713.5,3713.2,2.8274263]
[1754530159472,0.4722,3713.5,3713.3,2.69300339]
[1754530159977,0.13440001,3713.7,3713.4,2.69291751]
[1754530160271,0.4707,3713.6,3713.3,2.69295413]
[1754530160476,0.4707,3713.6,3713.5,2.69287733]
[1754530161874,1e-08,3713.7,3713.6,2.69280482]
[1754530162342,1e-08,3713.7,3713.2,2.82743728]
[1754530162681,0.4707,3713.6,3713.2,0.1344]
[1754530162841,1e-08,3713.7,3713.3,2.69302237]
[1754530163040,0.4707,3713.5,3713.4,2.69293856]
[1754530164288,0.4707,3713.5,3713.2,2.82744064]
[1754530164454,0.4707,3713.4,3713.3,2.69302237]
[1754530167390,0.4707,3713.4,3713.1,2.82749643]
[1754530167691,0.4707,3713.4,3713.1,2.69409643]
[1754530167692,0.4707,3713.3,3713.1,2.69409643]
[1754530167991,0.1344,3713.4,3713.1,0.001]
[1754530167992,0.4707,3713.2,3713.1,0.001]
[1754530168166,0.6051,3713.2,3713.1,0.001]
[1754530168354,0.54462,3713.2,3713.1,2.69416743]
[1754530168550,0.002,3713.5,3713.3,2.69302237]
[1754530168754,0.002,3713.5,3713.4,0.1344]
[1754530168954,0.002,3713.5,3713.4,2.82734985]
[1754530174913,0.4727,3713.5,3713.1,0.001]
[1754530175234,0.4707,3713.4,3713.1,0.1354]
[1754530175583,0.002,3713.5,3713.1,2.82855079]
[1754530177797,0.002,3713.5,3713.4,2.82734985]
[1754530181522,0.4727,3713.5,3713.4,2.69294985]
[1754530183022,0.4727,3713.5,3713.2,2.82745133]
[1754530183023,0.4727,3713.5,3713.2,0.1344]
[1754530183204,0.4707,3713.4,3713.1,0.001]
[1754530183622,0.4707,3713.3,3713.1,0.001]
[1754530184128,0.6315,3713.5,3713.1,0.001]
[1754530184904,0.1364,3713.5,3713.1,0.001]
[1754530185220,0.1344,3713.2,3713.1,0.001]
[1754530185440,0.46683773,3713.2,3713.1,0.001]
[1754530185925,0.96193773,3713.2,3713.1,0.001]
[1754530186089,0.6295,3713.2,3713.1,0.001]
[1754530189289,1.1002,3713.2,3713.1,0.001]
[1754530193022,3.7932949,3713.2,3713.1,0.001]
[1754530194031,4.1002,3713.2,3713.1,0.001]
[1754530194234,8.21890661,3713.2,3713.1,0.001]
[1754530200376,2.69353014,3712.6,3712.5,0.001]
[1754530200574,5.69382037,3712.2,3711.9,0.001]
[1754530200869,5.69382037,3712.2,3711.2,0.001]
[1754530200870,5.69425584,3711.6,3711.2,0.001]
[1754530201053,5.69425584,3711.6,3710.7,0.001]
[1754530201054,2.69483669,3710.8,3710.7,0.001]
[1754530201250,2.69483669,3710.8,3709.6,2.69570812]
[1754530201251,3.0,3710.7,3709.6,2.69570812]
[1754530201568,3.0,3710.7,3707.9,0.4059]
[1754530201569,0.1344,3709.4,3709.0,2.69614451]
[1754530201738,4.8694,3709.4,3708.9,0.1352]
[1754530201946,4.8744,3709.4,3709.0,0.2708]
[1754530202144,4.74,3709.4,3708.1,0.2708]
[1754530202335,0.1352,3709.0,3708.5,2.83168417]
[1754530202536,0.1352,3709.0,3708.5,3.10248417]
[1754530202729,3.0,3710.0,3708.5,3.10248417]
[1754530202730,4.738,3709.9,3708.8,2.6962899]
[1754530202959,4.741,3710.1,3708.9,0.2708]
[1754530203167,3.0,3710.7,3709.3,0.1344]
[1754530203168,0.1344,3709.8,3709.3,0.1344]
[1754530203369,0.1344,3709.6,3709.1,0.1352]
[1754530203684,0.1344,3709.6,3707.3,2.72429372]
[1754530203685,2.83136335,3709.0,3708.1,2.69679076]
[1754530203864,4.74,3709.0,3708.1,0.1352]
[1754530204182,0.1352,3708.6,3708.1,0.1352]
[1754530204477,2.69542041,3710.0,3708.1,0.1352]
[1754530204478,2.69535324,3710.1,3708.2,0.2708]
[1754530204686,17.64999789,3710.9,3708.2,0.2708]
[1754530204687,0.1344,3709.8,3709.7,2.69562982]
[1754530204866,0.4322,3710.6,3708.6,4.739]
[1754530205037,0.4322,3710.6,3710.1,2.69528016]
[1754530205038,0.1344,3710.3,3710.1,2.69528016]
[1754530205238,0.1344,3710.3,3710.2,2.69527249]
[1754530206088,0.1344,3710.3,3710.2,3.50514006]
[1754530206398,0.1364,3711.2,3711.1,2.69461884]
[1754530206548,0.002,3711.2,3711.1,2.69461884]
[1754530207882,0.002,3711.2,3710.5,2.69498477]
[1754530207883,0.4342,3711.2,3710.5,2.69498477]
[1754530208089,0.4342,3711.2,3710.4,2.69511295]
[1754530208090,0.1344,3711.0,3710.4,2.69511295]
[1754530208379,0.1344,3710.8,3710.4,2.69511295]
[1754530208584,0.1344,3710.8,3710.5,2.69504949]
[1754530208795,0.1344,3710.8,3710.7,2.69490931]
[1754530208971,0.1344,3710.8,3710.5,2.69498769]
[1754530209376,0.1344,3710.8,3710.4,2.69512619]
[1754530209893,0.1344,3710.8,3710.2,2.69522006]
[1754530209894,0.4322,3710.7,3710.2,2.69520556]
[1754530210207,0.4322,3710.7,3709.3,0.2708]
[1754530210208,0.1344,3710.5,3710.0,2.82980877]
[1754530210416,0.1344,3710.5,3710.0,0.1344]
[1754530210575,0.1344,3710.1,3709.8,2.69549206]
[1754530210781,0.1344,3710.1,3709.6,2.83006423]
[1754530211009,0.1344,3709.8,3709.6,2.69566423]
[1754530211305,0.1344,3709.8,3709.3,2.69592166]
[1754530211523,4.717,3710.8,3709.3,2.69592166]
[1754530211524,0.4322,3709.7,3709.3,2.69592166]
[1754530211804,7.40934896,3710.1,3709.2,2.69599309]
[1754530211962,0.4322,3709.6,3709.2,2.69599309]
[1754530212163,0.4322,3709.6,3708.2,4.9818]
[1754530212437,0.1344,3709.4,3708.9,2.6962172]
[1754530212567,0.1344,3709.4,3709.1,2.69602899]
[1754530212969,0.1344,3709.4,3709.3,2.69592645]
[1754530213200,0.7409349,3710.0,3709.9,2.69545901]
[1754530213201,0.1344,3710.0,3709.9,2.69545901]
[1754530213496,0.1344,3710.2,3709.3,0.4052]
[1754530213707,0.1344,3709.9,3709.7,2.69561354]
[1754530213861,0.1344,3709.9,3709.8,2.6955631]
[1754530214065,0.002,3710.8,3708.9,2.69620334]
[1754530214376,0.002,3710.8,3709.8,0.4052]
[1754530214377,0.1344,3710.5,3709.8,0.4052]
[1754530214760,0.1344,3710.5,3710.1,2.69527876]
[1754530214965,0.1344,3710.5,3710.2,2.69527249]
[1754530215162,0.1344,3710.5,3709.8,0.1344]
[1754530215163,0.4322,3710.4,3709.8,0.1344]
[1754530215391,0.1344,3710.5,3709.8,0.1344]
[1754530215579,0.582632,3710.4,3710.1,2.69532099]
[1754530215779,0.1344,3710.5,3710.3,2.69519984]
[1754530216088,0.002,3710.8,3710.7,2.69490931]
[1754530217578,0.4342,3710.8,3710.3,2.82954086]
[1754530217781,0.4342,3710.8,3710.7,2.69490931]
[1754530217782,0.002,3710.8,3710.7,2.69490931]
[1754530218628,0.002,3710.8,3710.6,0.1344]
[1754530218786,0.1344,3710.6,3709.9,2.69648957]
[1754530218983,0.1344,3710.4,3709.9,0.001]
[1754530219326,0.1344,3710.0,3709.9,0.001]
[1754530220807,0.5862,3710.0,3709.9,0.001]
[1754530221008,1.11382,3710.0,3709.9,0.001]
[1754530221214,0.66202,3710.0,3709.9,0.001]
[1754530221507,3.0,3710.6,3709.9,3.10169044]
[1754530221708,0.1344,3710.6,3710.1,0.1344]
[1754530221919,0.002,3710.8,3710.7,2.69490931]
[1754530222087,0.002,3710.8,3710.5,2.6949897]
[1754530222708,0.002,3710.8,3710.4,0.1344]
[1754530223892,0.4518,3710.7,3710.4,0.1344]
[1754530224098,0.4518,3710.6,3710.4,0.1344]
[1754530224301,0.1344,3710.5,3710.0,2.69541778]
[1754530224611,0.002,3710.8,3709.9,0.001]
[1754530224612,0.002,3710.8,3710.4,0.1344]
[1754530224800,0.48284,3710.8,3710.5,2.69503686]
[1754530225004,0.002,3710.8,3710.4,0.1344]
[1754530225216,0.002,3710.8,3710.4,0.4052]
[1754530225395,0.002,3710.8,3710.7,2.69490931]
[1754530225813,0.002,3710.8,3710.4,0.1344]
[1754530226320,0.002,3710.8,3710.4,2.69511944]
[1754530226511,0.1344,3710.6,3710.5,2.69503719]
[1754530226829,0.002,3710.8,3710.6,2.69496349]
[1754530226984,0.002,3710.8,3710.5,2.69505064]
[1754530227323,0.002,3710.8,3710.4,2.82951902]
[1754530227622,0.78214,3710.8,3709.9,2.69642223]
[1754530227921,0.4518,3710.7,3710.1,2.82972226]
[1754530228216,0.1344,3710.6,3710.1,2.82972226]
[1754530228381,0.1344,3710.6,3710.1,0.1344]
[1754530228587,3.9391,3710.5,3709.9,0.001]
[1754530228831,5.82981778,3710.0,3709.9,0.001]
[1754530229306,6.76891778,3710.0,3709.9,0.001]
[1754530230486,4.0735,3710.0,3709.9,0.001]
[1754530230691,11.41991778,3710.0,3709.9,0.001]
[1754530231719,10.93261778,3710.0,3709.9,0.001]
[1754530231928,12.02587956,3710.0,3709.9,0.001]
[1754530232310,9.33046178,3710.0,3709.9,0.001]
[1754530232517,8.87766178,3710.0,3709.9,0.001]
[1754530232900,4.22766178,3710.0,3709.9,0.001]
[1754530233103,7.65,3710.0,3709.9,0.001]
[1754530233298,7.649,3710.0,3709.9,0.001]
[1754530233728,3.0,3710.0,3709.9,0.001]
[1754530234027,11.28151778,3710.0,3709.9,0.001]
[1754530234191,12.42310956,3710.0,3709.9,0.001]
[1754530234394,12.97310956,3710.0,3709.9,0.001]
[1754530234794,12.97310956,3710.0,3709.5,0.001]
[1754530234795,5.69570843,3709.6,3709.5,0.001]
[1754530235099,10.47410843,3709.6,3709.5,0.001]
[1754530235311,10.92590843,3709.6,3709.5,0.001]
[1754530235626,12.82408963,3709.6,3709.5,0.001]
[1754530238591,13.37408963,3709.6,3709.5,0.001]
[1754530238797,13.37408963,3709.6,3706.6,0.2718]
[1754530238798,0.55,3709.3,3706.6,0.2718]
[1754530238995,0.9391,3709.2,3708.3,0.001]
[1754530239229,1.45955444,3710.0,3708.3,0.001]
[1754530239230,0.4518,3709.7,3708.3,0.001]
[1754530239402,2.695799,3709.5,3708.7,0.001]
[1754530239608,2.69526262,3710.3,3708.7,0.001]
[1754530239609,0.810457,3710.5,3708.8,0.6787]
[1754530239832,4.641,3710.6,3709.0,2.69614451]
[1754530240129,4.641,3710.6,3708.9,0.70566217]
[1754530240130,3.0,3710.5,3709.1,0.54141445]
[1754530240437,4.64,3710.4,3709.2,0.2718]
[1754530240637,0.4538,3711.2,3709.2,0.2718]
[1754530240947,0.002,3711.2,3710.5,2.69502033]
[1754530241446,0.002,3711.2,3710.7,2.69490931]
[1754530241740,0.002,3711.2,3710.7,2.7218584]
[1754530241922,0.002,3711.2,3710.7,3.98316983]
[1754530242093,0.002,3711.2,3710.7,2.69490931]
[1754530242800,0.002,3711.2,3710.7,3.37360931]
[1754530242993,0.002,3711.2,3710.7,3.4005584]
[1754530243799,0.002,3711.2,3710.7,2.96670931]
[1754530244000,0.002,3711.2,3710.7,3.4005584]
[1754530244295,0.002,3711.2,3710.7,4.01011676]
[1754530244703,0.002,3711.2,3710.7,3.98316767]
[1754530245005,0.002,3711.2,3710.7,3.57626767]
[1754530245337,0.002,3711.2,3710.7,2.69490931]
[1754530245834,0.002,3711.2,3710.7,2.96670931]
[1754530246719,0.002,3711.2,3710.7,2.69490931]
[1754530247546,0.002,3711.2,3710.7,2.96670931]
[1754530247738,0.002,3711.2,3710.7,2.69490931]
[1754530248566,0.002,3711.2,3710.4,2.69512721]
[1754530248860,0.002,3711.2,3710.7,0.1344]
[1754530249022,0.002,3711.2,3710.7,2.82930931]
[1754530250535,0.002,3711.2,3710.7,0.1344]
[1754530250744,0.002,3711.2,3710.7,2.82930931]
[1754530251066,0.002,3711.2,3710.7,3.65354176]
[1754530251558,0.002,3711.2,3710.7,4.08739085]
[1754530251559,1e-08,3710.8,3710.7,4.08739085]
[1754530252260,1e-08,3710.8,3710.7,8.68739085]
[1754530252431,1e-08,3710.8,3710.7,8.66044176]
[1754530252756,1e-08,3711.2,3711.1,2.69461884]
[1754530252943,1e-08,3711.2,3711.1,3.23355309]
[1754530253252,1e-08,3711.2,3711.1,4.04665309]
[1754530253626,1e-08,3711.2,3711.1,8.64365309]
[1754530253818,1e-08,3711.2,3711.1,8.64165309]
[1754530254018,1e-08,3711.2,3711.1,3.36795309]
[1754530254374,1e-08,3711.2,3711.1,7.42201884]
[1754530255755,1e-08,3711.2,3711.1,8.10071884]
[1754530256924,0.002,3712.0,3711.9,2.69403809]
[1754530257130,0.002,3712.0,3711.9,7.41243809]
[1754530259460,1e-08,3713.7,3712.2,0.55]
[1754530259760,1e-08,3713.7,3712.0,1.01304381]
[1754530259927,0.4745,3713.5,3712.2,2.69382037]
[1754530260257,0.4745,3713.5,3712.3,0.2718]
[1754530260470,0.4745,3713.5,3713.0,2.69319816]
[1754530260636,0.4643,3713.4,3713.1,2.6931532]
[1754530260961,0.4745,3713.5,3713.1,2.69310138]
[1754530260962,0.9368,3713.3,3713.1,2.69310138]
[1754530261158,0.002,3713.5,3713.2,2.6930949]
[1754530261362,0.002,3713.5,3713.4,2.69294985]
[1754530261662,0.4725,3713.4,3712.9,4.584]
[1754530262173,0.4725,3713.4,3713.0,2.69323996]
[1754530262467,0.002,3713.5,3713.1,2.69316492]
[1754530262661,0.002,3713.5,3713.1,0.9970502]
[1754530262963,0.002,3713.5,3713.4,2.69294985]
[1754530263164,0.002,3713.5,3713.4,7.26794985]
[1754530263338,0.002,3713.5,3713.4,2.69294985]
[1754530263540,0.4745,3713.5,3713.4,4.574]
[1754530263732,0.9388,3713.5,3713.2,2.69307858]
[1754530263931,0.9388,3713.5,3713.1,7.26916118]
[1754530264128,0.4725,3713.4,3713.2,2.69308962]
[1754530264333,0.4725,3713.4,3713.1,7.2691613]
[1754530264935,0.9368,3713.3,3713.0,4.576]
[1754530265145,0.4725,3713.2,3713.0,4.576]
[1754530265469,0.002,3713.5,3713.0,4.576]
[1754530265625,0.002,3713.5,3713.4,2.69294985]
[1754530265825,0.002,3713.5,3713.4,4.57]
[1754530266030,0.002,3713.5,3713.4,7.26294985]
[1754530266361,0.002,3713.5,3713.4,7.53474985]
[1754530266732,0.002,3713.5,3713.4,7.26294985]
[1754530267133,0.002,3713.5,3713.4,7.25994985]
[1754530267367,0.002,3713.5,3713.4,8.03170484]
[1754530267666,0.002,3713.5,3713.4,8.71040484]
[1754530268631,0.002,3713.5,3713.4,8.30350484]
[1754530269039,0.002,3713.5,3713.4,8.71040484]
[1754530269248,1e-08,3713.5,3713.4,8.71040484]
[1754530269448,1e-08,3713.5,3713.4,8.84480484]
[1754530269982,1e-08,3713.7,3713.6,3.24280482]
[1754530270162,1e-08,3713.7,3713.6,3.77447005]
[1754530270565,1e-08,3713.7,3713.6,4.58757005]
[1754530271358,1e-08,3713.7,3713.6,4.56064201]
[1754530271664,1e-08,3713.7,3713.6,4.83707005]
[1754530271993,1e-08,3713.7,3713.6,7.88394201]
[1754530272390,1e-08,3713.7,3713.6,3.33194201]
[1754530272690,1e-08,3713.7,3713.6,7.88094201]
[1754530273363,1e-08,3713.7,3713.6,9.10964201]
[1754530273564,1e-08,3713.7,3713.6,3.88194201]
[1754530273870,1e-08,3713.7,3713.6,8.42794201]
[1754530274491,1e-08,3713.7,3713.6,7.87194201]
[1754530274695,1e-08,3713.7,3713.6,7.73754201]
[1754530274870,1e-08,3713.7,3713.6,7.87194201]
[1754530275592,1e-08,3713.7,3713.6,2.82720482]
[1754530275799,1e-08,3713.7,3713.6,7.36620482]
[1754530276358,0.47250001,3713.7,3713.6,7.36620482]
[1754530277659,1e-08,3713.7,3713.6,7.36620482]
[1754530277867,1e-08,3714.5,3714.4,2.69222485]
[1754530278079,1e-08,3714.5,3714.4,7.22322485]
[1754530278276,1e-08,3714.5,3714.4,8.2147801]
[1754530278462,1e-08,3714.5,3714.4,8.3491801]
[1754530278800,0.002,3714.7,3714.6,2.6920799]
[1754530278801,1e-08,3714.7,3714.6,2.6920799]
[1754530279003,0.4643,3716.6,3715.9,2.69113808]
[1754530279302,0.004,3717.2,3714.6,8.10992079]
[1754530279303,0.4725,3716.9,3716.8,2.69048643]
[1754530279499,0.4725,3716.9,3716.8,7.22548643]